{"text_format":"2","workbook":"xlsx","n_sheets":1,"sheets":["Общая по фамилиям"],"not_rendered":{"charts":0,"images":0,"macros":0,"external_links":0,"defined_names":0,"comments":0,"pivot_tables":0},"unopened":[],"bounds":{"document_bytes":16777216,"sheet_cells":100000,"run_cost":"one","rows_first":2000,"rows_last":500,"rows_between":2000,"halvings":0,"cell_chars":16384,"cell_head_chars":4096},"cells_cut":0,"cells_raw":0,"read":"whole","date_system":"1900"}

{"sheet":"Общая по фамилиям","index":0,"n_rows":606,"n_cols":4,"rows_kept":606,"cut":false,"hidden":false,"merged":[]}
["Name","АРС 15","АРС 16","Сумма билетов"]
["Abramenkov Sergey",4,0,{"$f":"C2+B2","v":4}]
["Abramovas Aleksandras",2,0,{"$f":"C3+B3","v":2}]
["Adamovich Aleksey",2,2,4]
["Adamovich Denis",3,0,3]
["Adelberg Artur",14,0,14]
["Afanasyev Aleksey",0,11,11]
["Agabaev Arslan",8,0,8]
["Agasarov Roman",0,4,4]
["Aglyamov Radik",0,7,7]
["Akimov Dmitriy",0,5,5]
["Akulov Dmitriy",3,2,5]
["Albitskiy Sergey",23,7,30]
["Alieva Luana",4,1,5]
["Altukhov Igor",0,3,3]
["Altynikov Roman",0,7,7]
["Alzhanov Azamat",0,1,1]
["Ananova Anna",4,23,27]
["Andreev Dmitriy",0,9,9]
["Andreev Vadim",1,3,4]
["Andrianovskaya Anna",0,1,1]
["Anisimov Aleksey",10,0,10]
["Antipova Erika",0,1,1]
["Antokhin Aleksey",4,2,6]
["Antropov Akim",0,3,3]
["Antufyev Andrey",0,1,1]
["Aratsev Daniil",0,13,13]
["Aristov Aleksey",0,1,1]
["Arkhipova Elizaveta",0,1,1]
["Arsenenko Denis",0,2,2]
["Aseeva Vera",0,2,2]
["Ataksheev Danila",0,1,1]
["Avanesian Vazgen",8,0,8]
["Avanesyan Artem",5,0,5]
["Avdunin Kirill",0,12,12]
["Ayupov Artur",6,0,6]
["Azaryan Aleksandr",0,14,14]
["Azhmaganbetov Timur",0,7,7]
["Baaziz Mario",0,4,4]
["Babiy Diana",0,1,1]
["Babushkin Nikolay",0,21,21]
["Badrutdinov Ruslan",10,0,10]
["Bakhrov Konstantin",0,2,2]
["Bakhta Stanislav",9,0,9]
["Balobanov Konstantin",3,0,3]
["Barannikov Ilya",0,26,26]
["Bartysh Bogdan",0,14,14]
["Bayandina Yulia",0,12,12]
["Bayramov Azer",0,17,17]
["Bedareva Ksenia",2,0,2]
["Bedzhanyan Alla",1,0,1]
["Bedzhanyan Levon",22,0,22]
["Belikov Dmitriy",18,15,33]
["Belinskiy Artem",0,9,9]
["Beliy Aleksandr",0,7,7]
["Belousov Andrey",7,0,7]
["Belozertsev Valeriy",3,0,3]
["Belyaev Artem",0,6,6]
["Belyaeva Rimma",5,6,11]
["Belyavskiy Evgeniy",12,30,42]
["Berdyshev Evgeniy",1,0,1]
["Berenbeyn Aleksandr",8,9,17]
["Berezovoy Aleksandr",0,6,6]
["Berg Maksim",0,17,17]
["Berlin Sergey",0,8,8]
["Bezotosniy Viktor",0,16,16]
["Bikeev Talgat",16,18,{"$f":"C67+B67","v":34}]
["Biriukov Aleksandr",9,7,16]
["Boeva Anastasiya",0,1,1]
["Bolbas Viktor",8,0,8]
["Bolbas Viktor_2",2,0,2]
["Bolev Sergey",0,7,7]
["Bondar Ilya",0,1,1]
["Bondarchuk Aleksandr",0,1,1]
["Bondarev Aleksandr",3,0,3]
["Boretskiy Maksim",4,0,4]
["Borisov Nikolay",10,12,22]
["Borov Anzor",3,0,3]
["Bovaev Elvig",2,1,3]
["Boyazitov Ramil",31,0,31]
["Boyko Aleksey",1,0,1]
["Boytler Kirill",0,7,7]
["Bozhich Andrey",4,0,4]
["Budarina Tatyana",0,1,1]
["Bulatov Artem",11,13,24]
["Buldakov Nikolay",0,4,4]
["Bulgakov Vladimir",5,0,5]
["Buyankina Marina",1,2,3]
["Bystrov Maksim",0,7,7]
["Chashchin Igor",0,7,7]
["Chelpanov Aleksey",1,0,1]
["Cheltsov Anton",5,0,5]
["Chepkasov Dmitriy",0,1,1]
["Cherkashin Andrey",30,18,48]
["Cherkasov Grigoriy",1,0,1]
["Chernyi Roman",2,1,3]
["Chistyakov Konstantin",1,1,2]
["Cholokyan Andronik",8,7,15]
["Churikov Mikhail",0,8,8]
["Danilov Konstantin",14,0,14]
["Davydov Armen",10,9,19]
["Dayneko Artem",22,37,59]
["Dedelov Fedor",24,38,62]
["Demenkov Vladimir",0,20,20]
["Demin Evgeniy_1986",4,0,4]
["Demonov Sergey",6,12,18]
["Denisov Pavel",11,7,18]
["Derbyshev Vyacheslav",0,14,14]
["Dergachev Nikita",0,18,18]
["Deripalko Mariya",0,1,1]
["Devyatkina Olga",0,3,3]
["Dmitriyev Aleksandr",19,0,19]
["Donets Aleksey",33,30,63]
["Doronin Maksim",3,0,3]
["Dosychev Kirill",2,0,2]
["Drozd Anastasiya",0,3,3]
["Dubeyko Mikhail",26,1,27]
["Dziuba Sergey",1,0,1]
["Edilbekov Arseniy",3,0,3]
["Efimov Fedor",0,3,3]
["Egorov Nikita",0,6,6]
["Elin Denis",0,2,2]
["Eliseev Konstantin",1,0,1]
["Emelyanov Aleksey",0,4,4]
["Ershov Andrey",12,6,18]
["Esaulov Vladislav",1,6,7]
["Esaulova Diana",0,1,1]
["Evrova Milana",0,1,1]
["Evseev Aleksey",1,1,2]
["Fadeev Vladimir",1,5,6]
["Falkovsky Igor",0,16,{"$f":"C131+B131","v":16}]
["Farafontov Aleksandr",13,17,30]
["Fedchenko Mikhail",17,19,36]
["Fedorenko Dmitriy",15,0,15]
["Fedorov Anton",0,14,14]
["Filimonov Filipp",0,1,1]
["Firfarov Dmitriy",5,0,5]
["Firsov Sergey",5,13,18]
["Firsova Elena",0,1,1]
["Fogel Evgeniy",1,3,4]
["Fokin Valeriy",15,19,34]
["Fomenko Grigoriy",1,4,5]
["Fridman Ilia",12,13,25]
["Funikov Viktor",22,24,46]
["Galaktionov Aleksey",2,5,7]
["Galiullin Ruslan",0,9,9]
["Gaprindashvili Roman",2,0,2]
["Garagulia Anton",1,0,1]
["Gashkov Mikhail",0,4,4]
["Gavrilov Aleksandr",0,10,10]
["Gavrilov Nikolay",0,4,4]
["Gaydukov Aleksandr",0,7,7]
["Gayvorontseva Oksana",0,10,10]
["Gayzhutis Igor",1,1,2]
["Gazarov Tovmas",1,0,1]
["Generalov Konstantin",28,29,57]
["Generalova Anastasiya",7,0,7]
["Gilyazitdinov Vasil",0,6,6]
["Girfanov Marat",0,6,6]
["Gladkiy Sergey",0,1,1]
["Gluzdovskaya Yuliya",0,9,9]
["Goldberg Leonid",2,3,5]
["Golovchenko Vyacheslav",0,16,16]
["Goncharov Ruslan",0,1,1]
["Gorbachev Mikhail",0,1,1]
["Gorbunov Boris",0,4,4]
["Gorbunov Mikhail",0,6,6]
["Gordeeva Darya",0,1,1]
["Gorlenko Yuriy",3,1,4]
["Gorshkova Alina",0,2,2]
["Grenko Andrey",0,11,11]
["Grigorash Grigoriy",8,0,8]
["Grigorenko Roman",0,2,2]
["Grigorov Evgeniy",7,13,20]
["Grigoryan Mels",0,1,1]
["Grigoryev Igor",0,3,3]
["Grigoryeva Liliya",0,1,1]
["Grigoryeva Oksana",0,3,3]
["Grinkiv Andrey",0,1,1]
["Grishin Aleksey",0,3,3]
["Gritsenko Aleksey",9,8,17]
["Grudinskiy Anatoliy",0,3,3]
["Gruzd Viktor",0,2,2]
["Gubashkin Aleksey",1,1,2]
["Gubinov Anatoliy",0,2,2]
["Ibragimov Abdul",0,1,1]
["Ibragimov Artur",0,12,12]
["Ilin Evgeniy",0,5,5]
["Ilin Kirill",0,6,6]
["Ivanov Andrey",0,2,2]
["Izmaylov Igor",11,12,23]
["Izumova Anastasiya",0,1,1]
["Kadirov Aleksey",0,1,1]
["Kalashnikov Ilya",2,1,3]
["Kaliankovich Siarhey",0,20,{"$f":"C195+B195","v":20}]
["Kalpenskiy Sergey",5,2,7]
["Kalugin Mikhail",2,0,2]
["Karpovich Kirill",2,0,2]
["Karyaeva Anastasiya",0,1,1]
["Karyakin Dmitriy",0,2,2]
["Kashapova Enzhe",0,3,3]
["Kasumov Timur",16,0,16]
["Katymaev Evgeniy",14,0,14]
["Kayurov Aleksandr",0,5,5]
["Kazbekov Boris",12,10,22]
["Kel Ivan",0,1,1]
["Khabibullina Alina",0,5,5]
["Khachatryan Armen",17,17,34]
["Khan Aleksandr",9,0,9]
["Kharkov Ivan",0,2,2]
["Kharlov Evgeniy",0,6,6]
["Khaveev Sergey",0,11,11]
["Khaveev Sergey_2",0,4,4]
["Khelyal Semir",0,1,1]
["Khitrykh Ivan",0,5,5]
["Khizhnyak Aleksandr",0,6,6]
["Khomenko Dmitriy",0,1,1]
["Kiliushev Andrey",4,10,14]
["Kim Evgeniy",23,0,23]
["Kim Sergey",0,14,14]
["Kiperband Igor",1,0,1]
["Kirichenko Konstantin",0,11,11]
["Kirichenko Vladislav",0,8,8]
["Kiryliuk Kirill",0,15,15]
["Kiselev Vladislav",2,0,2]
["Kitaeva Ksenia",0,1,1]
["Klenin Georgiy",0,8,8]
["Klyashtorniy Artem",2,0,2]
["Klyzhko Ilya",0,12,12]
["Kochergin Igor",0,2,2]
["Kolendo Aleksandr",25,17,42]
["Kolesnikov Nikolai",6,0,6]
["Kolomiets Andrey",0,2,2]
["Kolomiets Konstantin",0,2,2]
["Kolosov Daniil",26,0,26]
["Kolotyuk Ksenia",12,0,12]
["Kolotyuk Roman",57,0,57]
["Koltsov Andrey",0,5,5]
["Kolyaskin Maksim",1,0,1]
["Komarov Aleksey",1,0,1]
["Kononenko Petr",17,4,21]
["Konovalov Nikita",16,9,25]
["Konovalov Sergey",39,72,111]
["Koptev Pavel",0,1,1]
["Korchagin Evgeniy",21,17,38]
["Korchagina Evgeniya",0,2,2]
["Korolev Ruslan",1,4,5]
["Korotkiy Denis",0,3,3]
["Koryakin Vitaliy",0,11,11]
["Korzh Artem",1,1,2]
["Kosarev Andrey",15,7,22]
["Kosarev Pavel",1,5,6]
["Kosko Stanislav",5,2,7]
["Kostikin Roman",0,3,3]
["Kotelnikov Vasiliy",0,20,20]
["Kovalenko Aleksey",8,0,8]
["Kovalenko Maksim",1,0,1]
["Kovalev Ivan",0,1,1]
["Kovalev Mikhail",3,5,{"$f":"C259+B259","v":8}]
["Kovalevskaya Irina",0,3,3]
["Kovalevskiy Dmitriy",4,10,14]
["Kovanin Sergey",0,8,8]
["Kozhevnikov Dmitriy",0,1,1]
["Kozhevnikov Grigoriy",0,2,2]
["Kozhevnikov Igor",0,12,12]
["Kozhevnikov Sergey",1,1,2]
["Kozhevnikova Lidiya",0,6,6]
["Kozhukhov Kirill",0,1,1]
["Kozlov Aleksey",10,0,10]
["Krasikov Artur",2,0,2]
["Krasilnikov Sergey",0,14,14]
["Kress Igor",8,16,24]
["Krutskikh Roman",2,3,5]
["Krylov Nikolay",0,4,4]
["Ksagorari Artem",0,9,9]
["Ksendzovskiy Ilia",0,31,31]
["Ksendzovskiy Ilya_2",0,1,1]
["Kudzhaev Dzhamaldin",0,4,4]
["Kukhalskiy Viktor",0,4,4]
["Kulakov Aleksey",7,0,7]
["Kuldyaykin Ivan",0,4,4]
["Kurepchikov Rodion",1,1,2]
["Kuzin Valeriy",0,10,10]
["Kuznetsov Aleksandr",0,9,9]
["Kydatov Lev",32,3,35]
["Lapin Ilya",5,0,5]
["Lapitskiy Egor",0,6,6]
["Lavrikov Sergey",19,19,38]
["Lavrov Andrey",0,1,1]
["Lazarev Roman",2,0,2]
["Lebedev Denis",0,9,9]
["Lebedev Vadim",0,4,4]
["Lee Vitaliy",0,17,17]
["Leonov Vladimir",1,0,1]
["Levchenko Sergey",0,3,3]
["Levin Aleksandr",13,0,13]
["Levin Aleksey",4,0,4]
["Lezhnev Ilya",20,0,20]
["Li Vitaliy",31,0,31]
["Lifshits Aleksandr",0,8,8]
["Ligay Maksim",12,3,15]
["Logay Viktor",2,11,13]
["Loginov Konstantin",2,4,6]
["Lopushenko Sergey",7,9,16]
["Lukiyan Vadim",0,9,9]
["Ma Zhiyuan",3,0,3]
["Maksimova Irina",0,1,1]
["Malyshev Denis",0,14,14]
["Malyshev Ruslan",0,1,1]
["Mamro Konstantin",0,1,1]
["Manukyan Gagik",0,2,2]
["Marenkov Igor",0,2,2]
["Marinina Eseniya",0,1,1]
["Markova Elizaveta",0,2,2]
["Martirosyan Armen",0,1,1]
["Martirosyan Gurgen",1,0,1]
["Martoyan Karen",0,3,3]
["Maslakov Mikhail",15,0,15]
["Maslyanov Nikolay",0,1,1]
["Matchenya Aleksey",0,1,1]
["Matveev Stanislav",0,1,1]
["Mediukha Evgeniy",13,17,30]
["Meshkov Pavel",9,0,{"$f":"C323+B323","v":9}]
["Meshkova Marina",3,0,3]
["Metelitsa Vyacheslav",8,6,14]
["Mikhalchuk Nikolay",3,0,3]
["Mikhalev Aleksandr",8,0,8]
["Mikhaylov Artur",0,14,14]
["Mikhaylov Maksim",0,6,6]
["Mikhaylova Olga",0,4,4]
["Mikitenko Vasiliy",11,11,22]
["Minduvaeva Valentina",0,1,1]
["Miroshnichenko Evgeny",14,20,34]
["Mishakov Stanislav",0,1,1]
["Mishin Aleksey",0,2,2]
["Mishin Stepan",5,0,5]
["Mityaev Ruslan",16,0,16]
["Mogilevskiy Vladislav",0,1,1]
["Mramornov Aleksey",9,4,13]
["Mudritskaya Elena",0,1,1]
["Mukhametzyanov Marsel",0,12,12]
["Muratov Rustem",7,7,14]
["Mustafin Amir",0,6,6]
["Nabiev Afis",0,16,16]
["Nakonechniy Pavel",1,0,1]
["Nalimov Ilya",2,0,2]
["Naumov Vladislav",0,14,14]
["Nekrasov Aleksandr",0,18,18]
["Nekrasov Maksim",0,10,10]
["Nekrasov Sergey",7,6,13]
["Nekrasova Anna",0,10,10]
["Nesiev Ruslan",12,16,28]
["Nevolin Aleksandr",1,0,1]
["Nikanovich Mikalai",13,15,28]
["Nikiforov Anton",8,5,13]
["Nikitin Eduard",0,2,2]
["Nikitin Sergey",0,9,9]
["Nikolaev Anatoliy",0,11,11]
["Nikolenko Aleksey",16,0,16]
["Nolde Sergey",0,2,2]
["Nosenko Igor",0,1,1]
["Nosov Igor",0,3,3]
["Novik Evgeniy",2,0,2]
["Novikov Artem",1,0,1]
["Novikov Nikolay",0,18,18]
["Nuraev Roman",8,14,22]
["Nurmagomedov Magomed",32,19,51]
["Nurulina Elena",0,2,2]
["Nurullin Aydar",19,0,19]
["Obukhov Yuriy",0,2,2]
["Olle Aleksey",21,17,38]
["Orlov Roman",3,6,9]
["Osadchiy Andrey",0,3,3]
["Osharov Aleksandr",0,9,9]
["Osipov Pavel",0,1,1]
["Osotskiy Aleksandr",0,1,1]
["Otkosov Aleksandr",3,13,16]
["Otkosov Evgeniy",0,3,3]
["Ovcharenko Pavel",0,1,1]
["Ovcharov Vladimir",22,27,49]
["Ovchinnikov Valeriy",0,1,1]
["Ovodov Aleksandr",0,13,13]
["Ovsyannikov Aleksey",1,0,1]
["Padzialinski Pavel",1,1,2]
["Paimukhin Vladislav",0,5,5]
["Panfilov Dmitriy",0,1,1]
["Panina Anastasiya",0,1,{"$f":"C387+B387","v":1}]
["Panteleev Andrey",0,3,3]
["Pantiukhin Aleksandr",4,3,7]
["Papeka Ihar",3,0,3]
["Pavlenko Aleksey",19,17,36]
["Pavlova Ksenya",0,1,1]
["Piliuganova Svetlana",0,8,8]
["Piven Artur",0,6,6]
["Pivovarov Anton",0,3,3]
["Plaksin Igor",0,1,1]
["Plyaskina Viktoriya",0,1,1]
["Pobedonostsev Maksim",0,5,5]
["Pochinok Roman",0,9,9]
["Podivilov Dmitriy",0,2,2]
["Podolskaya Raisa",0,1,1]
["Pogosov Arsen",0,4,4]
["Pogosyan Vage",0,15,15]
["Pollenskiy Dmitriy",0,2,2]
["Pollenskiy Evgeniy",0,7,7]
["Polnarev Konstantin",3,1,4]
["Polosmak Maksim",0,10,10]
["Polosmak Natalia",0,12,12]
["Ponkratyev Sergey",1,0,1]
["Ponomarenko Mikhail",0,6,6]
["Ponomarev Dmitriy",0,4,4]
["Popeka Igor",1,0,1]
["Porchuk Igor",2,3,5]
["Potapkin Artem",1,0,1]
["Potapkin Vladlen",0,1,1]
["Prent Natalya",1,0,1]
["Pripadchev Aleksey",0,11,11]
["Prizvan Arkadiy",0,10,10]
["Prokopovich Aleksandr",0,1,1]
["Prokopovich Marina",0,1,1]
["Proskurin Oleg",0,4,4]
["Pugachev Andrey",0,7,7]
["Puraev Artemiy",0,3,3]
["Puzanov Artem",14,0,14]
["Rafikov Adel",12,0,12]
["Rakhov Dmitriy",0,2,2]
["Rakovich Ivan",0,10,10]
["Ralko Pavel",0,4,4]
["Rasulov Arif",0,15,15]
["Razumov Oleg",0,4,4]
["Rebrikova Ekaterina",0,2,2]
["Rodin Sergey",5,14,19]
["Rogov Ilya",0,12,12]
["Rogov Maksim",21,16,37]
["Romanov Maksim",0,7,7]
["Roshchanikov Aleksandr",1,0,1]
["Rozanov Sergei",3,3,6]
["Rozinov Aleksandr",5,0,5]
["Rudakova Sofia",0,8,8]
["Ryaboshapka Pavel",6,0,6]
["Rybak Igor",10,11,21]
["Rybakov Aleksandr",4,0,4]
["Rybakova Alina",3,0,3]
["Rybin Andrei",0,1,1]
["Rybin Andrey",12,0,12]
["Rzaev Adil",2,3,5]
["Sabaev Konstantin",0,13,13]
["Sadov Pavel",0,3,3]
["Sadova Elena",0,1,1]
["Safin Timur",4,4,8]
["Sagaev Denis",18,22,{"$f":"C451+B451","v":40}]
["Sakhnevich Vadim",0,2,2]
["Salabaev Dmitriy",5,6,11]
["Sarymsakov Amir",6,0,6]
["Satinskaya Viktoria",0,2,2]
["Saulenas Arturas",0,6,6]
["Saulenas Mariya",0,1,1]
["Savchenko Andrey",0,7,7]
["Savelyeva Ekaterina",0,2,2]
["Savitskiy Stanislav",4,6,10]
["Sayapin Yuriy",37,51,88]
["Sayapina Natalya",3,7,10]
["Sayko Vitaliy",0,7,7]
["Semenikhin Aleksey",0,14,14]
["Semenov Anatoliy",0,2,2]
["Semenyachenko Roman",0,1,1]
["Serbun Anton",0,2,2]
["Serdiukov Dmitriy",0,15,15]
["Sereda Igor",10,9,19]
["Sergeev Artem",12,0,12]
["Shabalin Denis",9,2,11]
["Shabalin Ilya",39,21,60]
["Shaferman Maria",0,1,1]
["Shafigullin Ilnaz",1,0,1]
["Shafigullin Salavat",8,0,8]
["Shakaryan Ernest",12,9,21]
["Shakirov Ayrat",20,8,28]
["Shakirov Sergey",4,0,4]
["Shakirova Olga",1,0,1]
["Shaposhnikova Anastasiya",0,1,1]
["Sharenkov Grigoriy",1,0,1]
["Shchepelev Maksim",0,1,1]
["Shcherbakov Maksim",3,0,3]
["Shcherbakov Roman",0,6,6]
["Shcherban Lubov",0,1,1]
["Shebalkov Nikita",0,1,1]
["Shelever Vitaliy",19,15,34]
["Sheverdin Kirill",4,0,4]
["Shishkin Aleksandr",0,4,4]
["Shkolnik Evgeniy",0,4,4]
["Shkradov Aleksandr",13,11,24]
["Shmagun Valentin",4,8,12]
["Shostak Stanislav",0,1,1]
["Shubin Andrey",0,11,11]
["Shulgin Andrei",0,4,4]
["Shuloyakov Ildar",1,0,1]
["Shumeyko Dmitriy",0,12,12]
["Shumskiy Aleksandr",0,19,19]
["Shurkhno Aleksey",0,6,6]
["Sidorenko Denis",6,0,6]
["Sivkov Nikolay",2,1,3]
["Siziev Mikhail",3,13,16]
["Skorokhod Kirill",0,4,4]
["Skryabin Aleksandr",4,0,4]
["Skvortsov Sergey",0,1,1]
["Smakotin Evgeniy",0,4,4]
["Sokolov Aleksey",0,6,6]
["Solonina Angelina",1,0,1]
["Sotnichenko Galina",0,1,1]
["Spiridonov Aleksandr",0,7,7]
["Stamatin Artem",0,7,7]
["Starodubov Vitaliy",0,1,1]
["Stepanov Arkadiy",9,13,22]
["Stoponkus Richardas",1,0,1]
["Stoyka Roman",0,23,{"$f":"C515+B515","v":23}]
["Strelyaeva Ekaterina",0,1,1]
["Subbotin Vyacheslav",1,0,1]
["Sukov Dmitriy",0,1,1]
["Suprunov Andrey",20,11,31]
["Surin Gleb",0,2,2]
["Suy Mikhail",0,9,9]
["Syshchenko Stanislav",0,7,7]
["Tarapkin Maksim",0,3,3]
["Tarasov Roman",2,0,2]
["Tatsenko Vitaliy",16,8,24]
["Terentyev Sergey",0,2,2]
["Terentyeva Alina",0,2,2]
["Teselkin Aleksandr",6,2,8]
["Tishchuk Marina",0,1,1]
["Titarenko Boris",17,5,22]
["Torbin Mikhail",0,9,9]
["Toropov Pavel",1,0,1]
["Troyanovskiy Viktor",0,3,3]
["Trubitsyn Andrey",0,5,5]
["Tsoroev Ibragim",1,3,4]
["Tsybulskaya Anastasiya",0,3,3]
["Tsyganov Aleksey",0,4,4]
["Tumanov Mikhail",3,2,5]
["Turchaninov Nikita",2,0,2]
["Tyan Boris",0,13,13]
["Tyulyandin Sergey",0,1,1]
["Udachin Sergey",12,0,12]
["Ukalaev Emil",24,0,24]
["Uskov Yuriy",1,1,2]
["Usmanov Salim",0,10,10]
["Uspanov Danat",0,3,3]
["Uspanov Renat",0,4,4]
["Utin Aleksey",14,0,14]
["Vaganian Vage",0,18,18]
["Vagin Stanislav",0,2,2]
["Vakhnenko Igor",0,29,29]
["Vakhrameev Oleg",14,0,14]
["Varentsov Vladimir",4,4,8]
["Vasechko Anton",0,4,4]
["Vasiliev Anatoliy",5,0,5]
["Vasiukov Aleksey",0,1,1]
["Vdovenko Evgeniy",17,23,40]
["Verbitskiy Sergey",0,1,1]
["Vikharev Andrey",0,5,5]
["Vinnitsa Vitaliy",1,0,1]
["Vishniavetski Andrei",0,19,19]
["Vitchenko Denis",0,7,7]
["Vlasov Aleksey",0,10,10]
["Vlasova Violetta",0,31,31]
["Volkov Andrey",0,8,8]
["Volnukhin Alesandr",0,1,1]
["Vopilov Nikolay",22,0,22]
["Voropaev Aleksandr",0,27,27]
["Voropaev Anatoliy",9,0,9]
["Vovnenko Filipp",0,4,4]
["Voytenko Dmitriy",0,1,1]
["Voznesenskiy Nikita",0,12,12]
["Vzdykhanko Lev",0,1,1]
["Yakovenko Vasiliy",3,2,5]
["Yakovleva Mariya",5,2,7]
["Yakshin Pavel",1,1,2]
["Yakushenko Maksim",0,2,2]
["Yalovega Roman",4,10,14]
["Yanson Ivan",0,2,{"$f":"C579+B579","v":2}]
["Yarmoshchuk Sergey",0,9,9]
["Yaroshetskiy Aleksandr",18,11,29]
["Yarulin Aleksey",0,3,3]
["Yarulina Alina",0,3,3]
["Yashkin Oleg",0,7,7]
["Yasnogorodskiy Ilya",0,3,3]
["Yatsenko Mark",0,3,3]
["Yurkov Aleksandr",0,4,4]
["Zaborskii Andrei",0,4,4]
["Zakharov Aleksey",0,6,6]
["Zakharov Igor",0,13,13]
["Zakirov Zhevdet",4,0,4]
["Zakopaylo Vitaliy",17,0,17]
["Zanozin Pavel",0,4,4]
["Zapuskalov Stanislav",0,8,8]
["Zaynutdinov Ramis",0,2,2]
["Zaytsev Evgeniy",4,0,4]
["Zhavoronkov Sergey",12,4,16]
["Zhelezniak Ruslan",23,42,65]
["Zhiltsov Evgeniy",2,0,2]
["Zhiv Grigoriy",0,3,3]
["Zhuravlev Aleksandr",0,1,1]
["Zhuravleva Natalya",0,1,1]
["Zhyharau Uladzimir",12,0,12]
["Zlotnikov Anatoliy",18,18,36]
["Zotov Anton",8,0,8]
["Zverev Dmitriy",0,3,3]